bitfinex/quotes_SOLUSD_20241024
["timestamp","ask_amount","ask_price","bid_price","bid_amount"]
[1729740519512,23.902374,174.59,174.55,18.4008947]
[1729740520028,23.776884,174.62,174.58,18.4008947]
[1729740520237,0.12549,174.61,174.59,18.4008947]
[1729740520535,0.12549,174.61,174.58,18.4008947]
[1729740525437,0.12549,174.61,174.57,18.4008947]
[1729740526634,0.12549,174.61,174.5,88.7467788]
[1729740526843,0.12549,174.61,174.55,18.4008947]
[1729740526844,0.12549,174.59,174.55,18.4008947]
[1729740527345,0.12549,174.59,174.56,18.4008947]
[1729740528427,0.12549,174.59,174.55,18.4008947]
[1729740530939,0.12549,174.59,174.56,9.20044735]
[1729740531149,0.12549,174.59,174.57,18.4008947]
[1729740534633,0.12549,174.59,174.56,18.4008947]
[1729740535662,5.7265,174.63,174.58,18.4008947]
[1729740535831,5.7265,174.63,174.6,18.4008947]
[1729740536756,5.7265,174.63,174.59,18.4008947]
[1729740536925,23.902374,174.62,174.59,18.4008947]
[1729740539253,0.12549,174.62,174.6,18.4008947]
[1729740539554,0.12549,174.63,174.61,18.4008947]
[1729740541552,0.12549,174.63,174.6,18.4008947]
[1729740541738,0.12549,174.63,174.52,0.2]
[1729740541937,0.12549,174.63,174.6,18.4008947]
[1729740544639,6.4408,174.68,174.62,18.4008947]
[1729740544841,15.2352,174.7,174.65,18.4008947]
[1729740545042,15.2352,174.7,174.66,18.4008947]
[1729740545231,5.7237,174.71,174.66,18.4008947]
[1729740545438,24.1245947,174.71,174.6,73.6035788]
[1729740545649,24.1245947,174.71,174.65,18.4008947]
[1729740546154,23.902374,174.7,174.65,18.4008947]
[1729740546537,0.12549,174.69,174.64,18.4008947]
[1729740546727,18.5263847,174.65,174.6,18.4008947]
[1729740546928,18.5263847,174.65,174.59,18.4008947]
[1729740546929,18.4008947,174.64,174.59,18.4008947]
[1729740547234,23.902374,174.63,174.59,18.4008947]
[1729740549439,23.902374,174.65,174.61,18.4008947]
[1729740549940,23.902374,174.65,174.6,18.4008947]
[1729740550437,23.902374,174.65,174.6,28.64729618]
[1729740550751,0.12549,174.65,174.64,28.64729618]
[1729740550942,28.64729618,174.69,174.64,28.64729618]
[1729740551143,28.64729618,174.69,174.58,0.1]
[1729740551144,34.37149618,174.7,174.65,28.64729618]
[1729740551755,34.37149618,174.7,174.64,28.64729618]
[1729740552146,34.37149618,174.7,174.57,0.1]
[1729740552377,23.902374,174.69,174.64,28.64729618]
[1729740553262,23.902374,174.69,174.65,28.64729618]
[1729740553436,23.902374,174.69,174.66,28.64729618]
[1729740554159,29.626874,174.69,174.57,2.4]
[1729740554469,23.902374,174.67,174.63,28.64729618]
[1729740556948,23.776884,174.67,174.64,28.64729618]
[1729740557140,5.7241,174.7,174.66,28.64729618]
[1729740557337,0.12549,174.68,174.66,28.64729618]
[1729740557533,28.89827618,174.69,174.64,28.64729618]
[1729740557839,28.89827618,174.69,174.57,2.4]
[1729740557840,0.12549,174.67,174.63,28.64729618]
[1729740558560,0.12549,174.67,174.57,2.4]
[1729740558561,0.12549,174.67,174.64,28.64729618]
[1729740561934,0.12549,174.67,174.63,28.64729618]
[1729740562550,0.12549,174.67,174.64,28.64729618]
[1729740563059,0.12549,174.67,174.65,28.64729618]
[1729740567379,23.776884,174.68,174.66,28.64729618]
[1729740567563,23.776884,174.68,174.67,28.64729618]
[1729740567940,23.902374,174.68,174.66,28.64729618]
[1729740570466,23.902374,174.68,174.65,28.64729618]
[1729740570652,0.12549,174.68,174.64,28.64729618]
[1729740570856,0.12549,174.67,174.64,28.64729618]
[1729740571350,0.12549,174.68,174.64,28.64729618]
[1729740572261,0.12549,174.68,174.64,18.32790644]
[1729740574456,0.12549,174.66,174.56,16.4361]
[1729740574767,18.45339644,174.66,174.61,18.32790644]
[1729740575350,0.12549,174.66,174.61,18.32790644]
[1729740575957,0.12549,174.66,174.62,18.32790644]
[1729740576971,0.12549,174.64,174.62,18.32790644]
[1729740577847,0.12549,174.64,174.6,18.32790644]
[1729740579568,0.12549,174.64,174.56,16.4361]
[1729740579775,23.776884,174.63,174.59,18.32790644]
[1729740582170,23.776884,174.63,174.6,18.32790644]
[1729740582479,23.902374,174.64,174.6,18.32790644]
[1729740584249,23.902374,174.64,174.61,18.32790644]
[1729740586279,42.23028044,174.62,174.57,18.32790644]
[1729740587677,0.12549,174.61,174.56,18.32790644]
[1729740587857,18.45339644,174.61,174.56,18.32790644]
[1729740588179,0.12549,174.59,174.56,18.32790644]
[1729740589578,23.776884,174.6,174.56,18.32790644]
[1729740592687,0.12549,174.59,174.56,18.32790644]
[1729740594487,0.12549,174.59,174.57,18.32790644]
[1729740599985,0.12549,174.59,174.56,18.32790644]
[1729740601673,0.12549,174.59,174.52,15.516]
[1729740601969,0.12549,174.59,174.56,18.32790644]
[1729740602778,5.7264,174.63,174.58,18.32790644]
[1729740602976,5.7264,174.63,174.59,18.32790644]
[1729740603366,24.05390644,174.64,174.59,18.32790644]
[1729740603987,24.027864,174.63,174.59,18.32790644]
[1729740604374,24.027864,174.63,174.6,18.32790644]
[1729740605697,5.726,174.64,174.52,15.516]
[1729740605698,22.2501,174.66,174.62,18.32790644]
[1729740605872,27.9755,174.66,174.62,18.32790644]
[1729740606980,24.027864,174.65,174.62,18.32790644]
[1729740607176,24.027864,174.65,174.61,18.32790644]
[1729740607383,42.35577044,174.65,174.6,18.32790644]
[1729740607582,23.902374,174.63,174.59,18.32790644]
[1729740607787,42.35577044,174.63,174.58,18.32790644]
[1729740608691,18.32790644,174.62,174.58,18.32790644]
[1729740608870,23.776884,174.61,174.58,18.32790644]
[1729740609593,23.776884,174.61,174.52,15.516]
[1729740609794,18.32790644,174.59,174.52,15.516]
[1729740610090,23.776884,174.58,174.55,18.32790644]
[1729740610785,23.776884,174.58,174.54,18.32790644]
[1729740610993,42.10479044,174.58,174.53,18.32790644]
[1729740611795,23.776884,174.56,174.52,18.32790644]
[1729740612001,23.776884,174.56,174.53,18.32790644]
[1729740612175,23.902374,174.57,174.53,18.32790644]
[1729740612799,23.902374,174.57,174.52,18.32790644]
[1729740614681,23.902374,174.57,174.53,18.32790644]
[1729740616801,23.902374,174.57,174.54,18.32790644]
[1729740619927,23.902374,174.57,174.53,18.32790644]
[1729740620292,47.95868044,174.57,174.52,18.32790644]
[1729740623210,29.630774,174.57,174.53,18.32790644]
[1729740624804,23.902374,174.57,174.53,18.32790644]
[1729740625700,23.902374,174.57,174.52,18.32790644]
[1729740627399,23.902374,174.57,174.53,18.32790644]
[1729740632615,23.902374,174.57,174.54,18.32790644]
[1729740634019,23.902374,174.57,174.53,18.32790644]
[1729740634910,23.902374,174.57,174.52,18.32790644]
[1729740636622,47.95858044,174.57,174.48,16.0228]
[1729740636921,0.12549,174.54,174.46,5.95682729]
[1729740637222,0.12549,174.54,174.5,18.32790644]
[1729740637526,18.57888644,174.54,174.49,18.32790644]
[1729740637705,18.57888644,174.52,174.44,15.017]
[1729740638015,42.10479044,174.51,174.4,94.73339058]
[1729740638216,23.776884,174.51,174.47,18.32790644]
[1729740641424,0.12549,174.5,174.41,5.96773417]
[1729740641623,38.45339644,174.5,174.41,5.96773417]
[1729740641940,23.776884,174.49,174.45,18.32790644]
[1729740644431,23.776884,174.49,174.46,18.32790644]
[1729740644613,23.902374,174.5,174.46,18.32790644]
[1729740644927,18.32790644,174.51,174.4,88.32862576]
[1729740644928,44.027864,174.51,174.47,18.32790644]
[1729740645131,43.902374,174.51,174.47,18.32790644]
[1729740647418,62.23028044,174.51,174.46,18.32790644]
[1729740648930,23.902374,174.51,174.48,18.32790644]
[1729740649135,0.25098,174.51,174.49,18.32790644]
[1729740650022,0.25098,174.51,174.48,18.32790644]
[1729740651130,0.12549,174.51,174.48,18.32790644]
[1729740651315,23.776884,174.52,174.49,18.32790644]
[1729740652010,0.25098,174.51,174.4,88.32862576]
[1729740652218,23.776884,174.5,174.46,18.32790644]
[1729740652415,23.776884,174.5,174.47,18.32790644]
[1729740653131,24.027864,174.51,174.47,18.32790644]
[1729740653332,23.776884,174.52,174.49,18.32790644]
[1729740653638,15.0849,174.57,174.51,18.32790644]
[1729740653815,20.8132,174.57,174.53,18.32790644]
[1729740654018,39.14110644,174.57,174.52,18.32790644]
[1729740654341,18.32790644,174.54,174.49,18.32790644]
[1729740654715,24.027864,174.53,174.49,18.32790644]
[1729740655135,24.027864,174.53,174.43,16.377]
[1729740655333,29.757464,174.53,174.49,18.32790644]
[1729740659943,29.757464,174.53,174.5,18.32790644]
[1729740661240,29.757464,174.53,174.49,18.32790644]
[1729740661543,23.776884,174.51,174.47,18.32790644]
[1729740662358,18.45339644,174.5,174.43,16.377]
[1729740662642,0.12549,174.5,174.46,18.32790644]
[1729740662844,0.12549,174.5,174.47,18.32790644]
[1729740664541,0.12549,174.5,174.43,16.377]
[1729740664736,0.12549,174.5,174.47,18.32790644]
[1729740668062,0.12549,174.5,174.43,16.377]
[1729740668240,23.776884,174.49,174.45,18.32790644]
[1729740669233,23.902374,174.5,174.46,18.32790644]
[1729740669445,23.902374,174.5,174.47,18.32790644]
[1729740671735,0.12549,174.5,174.47,18.32790644]
[1729740676943,0.12549,174.5,174.46,18.32790644]
[1729740678166,0.12549,174.5,174.47,18.32790644]
[1729740680236,0.12549,174.5,174.48,18.32790644]
[1729740680441,0.12549,174.5,174.47,18.32790644]
[1729740680641,0.12549,174.5,174.4,79.35365345]
[1729740680942,0.12549,174.5,174.47,18.32790644]
[1729740684163,0.12549,174.5,174.48,18.32790644]
[1729740684958,5.729,174.55,174.49,18.32790644]
[1729740685153,5.729,174.55,174.51,18.32790644]
[1729740686064,15.0849,174.57,174.54,18.32790644]
[1729740687070,23.902374,174.56,174.54,18.32790644]
[1729740690072,23.902374,174.56,174.53,18.32790644]
[1729740692062,33.06632722,174.56,174.5,9.16395322]
[1729740692267,18.32790644,174.55,174.5,18.32790644]
[1729740692568,42.10479044,174.52,174.44,15.9429]
[1729740692747,42.10479044,174.52,174.47,18.32790644]
[1729740693068,23.776884,174.52,174.48,18.32790644]
[1729740693268,23.776884,174.53,174.49,18.32790644]
[1729740693475,23.776884,174.54,174.52,18.32790644]
[1729740693646,0.12549,174.54,174.52,18.32790644]
[1729740694162,0.12549,174.54,174.51,18.32790644]
[1729740694370,0.12549,174.54,174.5,18.32790644]
[1729740695049,18.45339644,174.54,174.49,18.32790644]
[1729740695256,0.12549,174.52,174.48,18.32790644]
[1729740695463,0.12549,174.52,174.49,18.32790644]
[1729740696569,23.776884,174.51,174.44,15.9429]
[1729740696756,23.776884,174.51,174.48,18.32790644]
[1729740697753,23.902374,174.52,174.48,18.32790644]
[1729740699244,23.902374,174.52,174.49,18.32790644]
[1729740699449,15.0849,174.57,174.51,18.32790644]
[1729740699668,0.25098,174.55,174.52,18.32790644]
[1729740699853,0.25098,174.55,174.51,18.32790644]
[1729740700559,5.97998,174.55,174.51,18.32790644]
[1729740700749,23.776884,174.54,174.51,18.32790644]
[1729740704873,23.776884,174.52,174.44,15.9429]
[1729740705081,42.10479044,174.52,174.47,18.32790644]
[1729740705864,18.32790644,174.49,174.44,18.32790644]
[1729740706161,18.32790644,174.5,174.45,18.32790644]
[1729740706485,23.776884,174.49,174.45,18.32790644]
[1729740706673,23.776884,174.49,174.39,18.51599974]
[1729740706865,23.776884,174.49,174.45,18.32790644]
[1729740707061,23.776884,174.49,174.46,18.32790644]
[1729740707379,23.776884,174.49,174.39,18.41599974]
[1729740707560,23.776884,174.49,174.45,18.32790644]
[1729740712889,23.776884,174.49,174.47,18.32790644]
[1729740714191,23.776884,174.5,174.47,18.32790644]
[1729740715778,23.776884,174.5,174.39,16.1006]
[1729740715979,23.776884,174.5,174.46,18.32790644]
[1729740717293,23.776884,174.5,174.47,18.32790644]
[1729740717490,24.027864,174.51,174.47,18.32790644]
[1729740718482,24.027864,174.51,174.48,18.32790644]
[1729740719772,23.776884,174.51,174.5,18.32790644]
[1729740719986,6.3356,174.56,174.5,18.32790644]
[1729740720171,6.3356,174.56,174.53,18.32790644]
[1729740720590,12.0643,174.56,174.52,18.32790644]
[1729740720880,30.39220644,174.56,174.51,18.32790644]
[1729740721287,18.32790644,174.55,174.51,18.32790644]
[1729740721477,42.23028044,174.54,174.49,18.32790644]
[1729740721691,23.902374,174.52,174.48,18.32790644]
[1729740722482,42.23028044,174.52,174.47,18.32790644]
[1729740722700,0.12549,174.51,174.47,18.32790644]
[1729740722992,23.902374,174.5,174.46,18.32790644]
[1729740723195,42.23028044,174.5,174.45,18.32790644]
[1729740723580,42.23028044,174.5,174.46,18.32790644]
[1729740723909,23.902374,174.5,174.46,18.32790644]
[1729740724281,23.902374,174.5,174.47,18.32790644]
[1729740724479,0.12549,174.5,174.47,18.32790644]
[1729740724888,23.776884,174.49,174.45,18.32790644]
[1729740725689,23.776884,174.49,174.46,18.32790644]
[1729740727805,23.776884,174.49,174.45,18.32790644]
[1729740730095,23.776884,174.49,174.46,18.32790644]
[1729740732208,23.776884,174.49,174.45,18.32790644]
[1729740735506,23.776884,174.47,174.43,18.32790644]
[1729740736409,24.027864,174.48,174.44,18.32790644]
[1729740737308,18.32790644,174.47,174.42,18.32790644]
[1729740737517,23.902374,174.46,174.43,18.32790644]
[1729740738016,0.12549,174.46,174.44,18.32790644]
[1729740739503,40.19360644,174.45,174.36,6.58597852]
[1729740739715,23.776884,174.4,174.36,24.91388496]
[1729740739897,23.776884,174.4,174.36,18.95009644]
[1729740740727,23.776884,174.4,174.37,18.32790644]
[1729740740897,23.776884,174.4,174.36,0.62219]
[1729740740898,23.776884,174.4,174.36,18.95009644]
[1729740741310,42.10479044,174.4,174.36,0.62219]
[1729740744007,23.776884,174.4,174.36,18.95009644]
[1729740749629,23.776884,174.4,174.37,18.32790644]
[1729740750015,0.12549,174.4,174.37,18.32790644]
[1729740750338,5.96486418,174.47,174.39,18.32790644]
[1729740750529,22.7924,174.49,174.44,18.32790644]
[1729740750699,18.32790644,174.46,174.42,18.32790644]
[1729740751422,18.32790644,174.44,174.36,16.05559]
[1729740751621,23.902374,174.43,174.39,18.32790644]
[1729740753117,23.902374,174.43,174.4,18.32790644]
[1729740753725,23.902374,174.43,174.39,18.32790644]
[1729740753927,23.776884,174.41,174.38,18.32790644]
[1729740754319,23.776884,174.42,174.38,18.32790644]
[1729740755212,23.776884,174.42,174.39,18.32790644]
[1729740755415,23.902374,174.43,174.39,18.32790644]
[1729740755641,23.902374,174.43,174.4,18.32790644]
[1729740761514,20.0,174.48,174.42,18.32790644]
[1729740761739,20.0,174.48,174.45,18.32790644]
[1729740762242,20.0,174.48,174.46,18.32790644]
[1729740762548,20.0,174.48,174.45,18.32790644]
[1729740762735,20.0,174.48,174.4,36.65581288]
[1729740762910,20.0,174.48,174.44,18.32790644]
[1729740763932,0.12549,174.46,174.38,15.9126]
[1729740764137,0.12549,174.46,174.43,18.32790644]
[1729740764526,0.12549,174.46,174.42,18.32790644]
[1729740765134,23.902374,174.45,174.42,18.32790644]
[1729740767131,23.902374,174.45,174.41,18.32790644]
[1729740769740,23.902374,174.45,174.42,18.32790644]
[1729740774425,23.902374,174.45,174.41,18.32790644]
[1729740774840,47.96278044,174.45,174.4,18.32790644]
[1729740775035,0.12549,174.44,174.4,18.32790644]
[1729740775345,23.902374,174.4,174.36,0.62219]
[1729740775643,42.23028044,174.4,174.36,18.95009644]
[1729740776328,42.23028044,174.4,174.36,0.62219]
[1729740777823,47.96428044,174.4,174.36,0.62219]
[1729740782353,23.902374,174.37,174.36,0.62219]
[1729740782541,42.23028044,174.37,174.36,0.62219]
[1729740783758,62.35577044,174.37,174.36,0.62219]
[1729740784054,68.09067044,174.37,174.36,0.62219]
[1729740784355,84.73077044,174.37,174.36,0.62219]
[1729740785134,102.03077044,174.37,174.36,0.62219]
[1729740786026,101.93077044,174.37,174.36,0.62219]
[1729740786737,84.73077044,174.37,174.36,0.62219]
[1729740791754,25.7349,174.37,174.36,0.62219]
[1729740791937,18.32790644,174.4,174.36,0.62219]
[1729740792543,18.32790644,174.39,174.36,0.62219]
[1729740793249,20.0,174.38,174.36,0.62219]
[1729740793749,23.902374,174.37,174.36,0.62219]
[1729740800259,68.09067044,174.37,174.36,0.62219]
[1729740808572,22.6246,174.42,174.36,9.78614322]
[1729740808782,18.32790644,174.44,174.39,18.32790644]
[1729740810172,20.0,174.41,174.39,18.32790644]
[1729740810667,43.902374,174.4,174.38,18.32790644]
[1729740813565,0.12549,174.39,174.38,18.32790644]
[1729740813773,0.25098,174.39,174.36,18.95009644]
[1729740813954,0.12549,174.37,174.36,0.62219]
[1729740814154,20.12549,174.37,174.36,0.62219]
[1729740814356,62.35577044,174.37,174.36,0.62219]
[1729740814548,44.027864,174.37,174.36,0.62219]
[1729740815574,49.762764,174.37,174.36,0.62219]
[1729740817547,68.09067044,174.37,174.36,0.62219]
[1729740820774,74.05601084,174.37,174.36,0.62219]
[1729740823960,91.25601084,174.37,174.36,0.62219]
[1729740824488,91.35601084,174.37,174.36,0.62219]
[1729740825467,91.25601084,174.37,174.36,0.62219]
[1729740825981,91.35601084,174.37,174.36,0.62219]
[1729740826592,64.89205762,174.37,174.36,0.62219]
[1729740826880,74.05601084,174.37,174.36,0.62219]
[1729740839596,55.7281044,174.37,174.36,0.62219]
[1729740840182,74.05601084,174.37,174.36,0.62219]
[1729740843898,5.7346,174.38,174.36,0.62219]
[1729740845091,5.7346,174.38,174.35,17.95009644]
[1729740845295,44.027864,174.37,174.35,17.95009644]
[1729740845606,49.762764,174.37,174.34,18.32790644]
[1729740846883,49.762764,174.37,174.33,18.32790644]
[1729740847287,49.762764,174.37,174.34,18.32790644]
[1729740849689,44.027864,174.37,174.34,18.32790644]
[1729740852400,49.762864,174.37,174.33,18.32790644]
[1729740854216,49.762864,174.37,174.34,18.32790644]
[1729740854217,43.902374,174.37,174.34,18.32790644]
[1729740854514,20.0,174.38,174.34,18.32790644]
[1729740854804,20.0,174.38,174.27,16.2957]
[1729740855006,38.32790644,174.38,174.27,16.2957]
[1729740855309,24.06300644,174.37,174.32,18.32790644]
[1729740855996,23.902374,174.36,174.32,18.32790644]
[1729740856998,20.12549,174.35,174.31,9.16395322]
[1729740857198,23.902374,174.34,174.31,18.32790644]
[1729740857400,42.23028044,174.34,174.29,18.32790644]
[1729740858411,47.96618044,174.34,174.29,18.32790644]
[1729740859513,29.638274,174.34,174.3,18.32790644]
[1729740859694,29.638274,174.34,174.31,18.32790644]
[1729740861322,29.638274,174.34,174.27,16.2957]
[1729740861609,29.638274,174.34,174.3,18.32790644]
[1729740862315,29.638274,174.34,174.31,18.32790644]
[1729740862897,29.638274,174.34,174.3,18.32790644]
[1729740864116,23.902374,174.34,174.32,18.32790644]
[1729740864303,44.027864,174.34,174.33,18.32790644]
[1729740864509,44.027864,174.34,174.32,18.32790644]
[1729740865102,0.25098,174.34,174.32,18.32790644]
[1729740865312,23.776884,174.33,174.32,18.32790644]
[1729740865516,23.902374,174.33,174.32,18.32790644]
[1729740865912,23.776884,174.33,174.32,18.32790644]
[1729740866113,5.7346,174.38,174.32,18.32790644]
[1729740866416,5.7346,174.38,174.35,18.32790644]
[1729740867400,0.12549,174.38,174.35,18.32790644]
[1729740868018,0.12549,174.37,174.35,18.32790644]
[1729740868324,5.7342,174.39,174.35,18.32790644]
[1729740868707,20.0,174.38,174.35,18.32790644]
[1729740869426,23.776884,174.37,174.35,18.32790644]
[1729740870504,23.776884,174.37,174.36,18.32790644]
[1729740870705,23.902374,174.37,174.36,18.32790644]
[1729740870906,23.776884,174.37,174.36,18.32790644]
[1729740872917,20.0,174.43,174.36,18.32790644]
[1729740873097,6.94639191,174.44,174.42,18.32790644]
[1729740873929,12.67899191,174.44,174.42,18.32790644]
[1729740874101,23.902374,174.43,174.42,18.32790644]
[1729740874306,23.902374,174.43,174.41,18.32790644]
[1729740875218,23.902374,174.43,174.4,18.32790644]
[1729740875726,29.635374,174.43,174.4,18.32790644]
[1729740877905,23.902374,174.43,174.41,18.32790644]
[1729740882818,23.902374,174.43,174.4,18.32790644]
[1729740883711,23.902374,174.43,174.41,18.32790644]
[1729740884930,23.902374,174.43,174.4,9.16395322]
[1729740885137,23.902374,174.43,174.4,18.32790644]
[1729740886348,29.635374,174.43,174.4,18.32790644]
[1729740889431,20.0,174.43,174.42,18.32790644]
[1729740890950,43.902374,174.43,174.42,18.32790644]
[1729740894838,23.902374,174.42,174.4,18.32790644]
[1729740898655,23.902374,174.42,174.39,18.32790644]
[1729740899150,29.635874,174.42,174.38,18.32790644]
[1729740899349,20.12549,174.41,174.32,15.6549]
[1729740899550,23.902374,174.4,174.36,18.32790644]
[1729740900035,23.902374,174.4,174.37,18.32790644]
[1729740900354,23.902374,174.38,174.32,15.6549]
[1729740900552,29.636974,174.38,174.36,18.32790644]
[1729740900847,23.902374,174.38,174.37,18.32790644]
[1729740901047,23.776884,174.38,174.37,18.32790644]
[1729740901629,0.25098,174.43,174.37,18.32790644]
[1729740901829,24.027864,174.43,174.41,18.32790644]
[1729740902750,29.760864,174.43,174.41,18.32790644]
[1729740903643,29.760864,174.43,174.4,18.32790644]
[1729740907251,23.902374,174.41,174.39,9.16395322]
[1729740907441,23.902374,174.41,174.37,18.32790644]
[1729740907638,23.776884,174.39,174.37,18.32790644]
[1729740907838,23.902374,174.41,174.37,18.32790644]
[1729740908351,23.776884,174.39,174.37,18.32790644]
[1729740910654,23.776884,174.39,174.38,18.32790644]
[1729740911650,5.85919,174.41,174.38,18.32790644]
[1729740911651,23.8375,174.49,174.38,18.32790644]
[1729740911855,28.33284074,174.47,174.43,18.32790644]
[1729740912053,24.05950644,174.47,174.43,18.32790644]
[1729740912762,5.7316,174.47,174.43,18.32790644]
[1729740912934,20.0,174.46,174.4,73.31162576]
[1729740913141,20.0,174.47,174.45,18.32790644]
[1729740913345,20.0,174.47,174.46,18.32790644]
[1729740913555,18.32790644,174.51,174.46,18.32790644]
[1729740913754,4.27659718,174.5,174.47,18.32790644]
[1729740913942,5.7303,174.51,174.49,18.32790644]
[1729740914143,12.3374,174.53,174.49,18.32790644]
[1729740914347,12.3374,174.53,174.5,18.32790644]
[1729740914755,6.6075,174.53,174.5,18.32790644]
[1729740914958,24.05720644,174.55,174.5,18.32790644]
[1729740915162,4.27634961,174.54,174.5,18.32790644]
[1729740915360,5.7293,174.55,174.52,18.32790644]
[1729740916146,5.7293,174.55,174.51,18.32790644]
[1729740916353,18.32790644,174.54,174.5,18.32790644]
[1729740916668,23.902374,174.53,174.5,18.32790644]
[1729740917164,0.12549,174.53,174.5,18.32790644]
[1729740918261,0.12549,174.53,174.43,16.1023]
[1729740918450,0.12549,174.53,174.5,18.32790644]
[1729740919257,0.12549,174.51,174.49,18.32790644]
[1729740919460,0.12549,174.51,174.48,18.32790644]
[1729740919965,0.12549,174.51,174.43,16.0023]
[1729740920182,0.12549,174.51,174.48,18.32790644]
[1729740920975,0.25098,174.51,174.43,16.0023]
[1729740921159,23.902374,174.48,174.44,18.32790644]
[1729740922248,42.23028044,174.48,174.38,16.0023]
[1729740922448,42.10479044,174.46,174.38,16.0023]
[1729740922762,42.10479044,174.46,174.41,18.32790644]
[1729740923149,42.10479044,174.46,174.38,16.0023]
[1729740923351,42.10479044,174.46,174.41,18.32790644]
[1729740923665,23.776884,174.46,174.42,18.32790644]
[1729740923863,23.776884,174.46,174.43,18.32790644]
[1729740925254,23.776884,174.46,174.45,18.32790644]
[1729740925454,23.902374,174.46,174.45,18.32790644]
[1729740925960,23.902374,174.46,174.43,18.32790644]
[1729740932858,23.776884,174.45,174.42,18.32790644]
[1729740933692,23.776884,174.45,174.38,16.0023]
[1729740933859,23.776884,174.45,174.42,18.32790644]
[1729740934778,23.776884,174.45,174.44,18.32790644]
[1729740935690,23.776884,174.45,174.43,18.32790644]
[1729740940977,23.776884,174.45,174.42,18.32790644]
[1729740942893,23.776884,174.45,174.44,18.32790644]
[1729740943773,23.776884,174.45,174.43,18.32790644]
[1729740945486,23.776884,174.45,174.38,16.0023]
[1729740945487,23.776884,174.45,174.42,18.32790644]
[1729740947622,18.45339644,174.44,174.34,16.6438]
[1729740947795,18.45339644,174.4,174.35,18.32790644]
[1729740947993,23.776884,174.39,174.35,18.32790644]
[1729740948319,23.776884,174.39,174.36,18.32790644]
[1729740948523,23.902374,174.4,174.36,18.32790644]
[1729740948696,29.636374,174.4,174.36,18.32790644]
[1729740951308,0.12549,174.4,174.38,18.32790644]
[1729740951502,0.12549,174.4,174.37,18.32790644]
[1729740952290,0.12549,174.4,174.31,20.1]
[1729740952522,0.12549,174.4,174.37,18.32790644]
[1729740953417,0.12549,174.4,174.38,18.32790644]
[1729740956409,23.776884,174.41,174.39,18.32790644]
[1729740956722,23.776884,174.42,174.4,18.32790644]
[1729740958621,23.776884,174.42,174.41,18.32790644]
[1729740960617,20.12549,174.46,174.41,18.32790644]
[1729740960824,23.776884,174.45,174.44,18.32790644]
[1729740961000,23.902374,174.45,174.44,18.32790644]
[1729740961929,23.902374,174.45,174.43,18.32790644]
[1729740962115,23.776884,174.45,174.44,18.32790644]
[1729740963403,0.12549,174.48,174.44,18.32790644]
[1729740963604,15.5071,174.51,174.4,73.31162576]
[1729740963605,5.7309,174.5,174.47,18.32790644]
[1729740964026,15.5071,174.51,174.49,18.32790644]
[1729740964323,5.7296,174.53,174.5,18.32790644]
[1729740964926,5.7296,174.53,174.49,18.32790644]
[1729740965808,5.7296,174.53,174.5,18.32790644]
[1729740966504,20.0,174.52,174.49,18.32790644]
[1729740966907,23.776884,174.51,174.49,18.32790644]
[1729740967209,0.12549,174.5,174.41,16.1596]
[1729740967418,0.12549,174.5,174.46,18.32790644]
[1729740967730,18.45339644,174.5,174.45,18.32790644]
[1729740967928,23.776884,174.49,174.45,18.32790644]
[1729740968629,0.12549,174.48,174.44,18.32790644]
[1729740968832,0.12549,174.48,174.41,16.1596]
[1729740969126,0.12549,174.48,174.45,18.32790644]
[1729740969821,23.776884,174.47,174.45,18.32790644]
[1729740971620,23.776884,174.47,174.46,18.32790644]
[1729740974536,23.902374,174.51,174.46,18.32790644]
[1729740974827,23.902374,174.51,174.47,18.32790644]
[1729740975212,42.23028044,174.51,174.47,18.32790644]
[1729740975410,42.23028044,174.51,174.41,16.1596]
[1729740975630,42.23028044,174.51,174.46,18.32790644]
[1729740975823,38.32790644,174.5,174.46,18.32790644]
[1729740976024,23.776884,174.49,174.46,18.32790644]
[1729740977239,0.12549,174.48,174.41,16.1596]
[1729740977418,0.12549,174.48,174.46,18.32790644]
[1729740978934,23.776884,174.47,174.45,18.32790644]
[1729740979736,23.776884,174.47,174.37,16.6403]
[1729740979737,18.45339644,174.46,174.37,16.5403]
[1729740979926,18.45339644,174.46,174.42,18.32790644]
[1729740979927,23.776884,174.45,174.42,18.32790644]
[1729740980633,23.902374,174.46,174.42,18.32790644]